[Event "Live Chess"]
[Site "Chess.com"]
[Date "2023.05.20"]
[Round "-"]
[White "Kr1xot4_XGOD"]
[Black "Ferrarifan27"]
[Result "0-1"]
[WhiteElo "2171"]
[BlackElo "2105"]
[TimeControl "300"]
[EndTime "10:03:10 PDT"]
[Termination "Ferrarifan27 won by resignation"]

1. e4 {[%clk 0:04:56]} 1... e5 {[%clk 0:04:57.4]} 2. Nf3 {[%clk 0:04:53.3]} 2...
Nc6 {[%clk 0:04:56.5]} 3. d4 {[%clk 0:04:50.4]} 3... exd4 {[%clk 0:04:53.7]} 4.
Nxd4 {[%clk 0:04:48]} 4... Nf6 {[%clk 0:04:49.4]} 5. Nxc6 {[%clk 0:04:45.2]}
5... bxc6 {[%clk 0:04:48]} 6. e5 {[%clk 0:04:43.3]} 6... Nd5 {[%clk 0:04:47]} 7.
c4 {[%clk 0:04:40.5]} 7... Nb6 {[%clk 0:04:43.8]} 8. Bf4 {[%clk 0:04:28.8]} 8...
d6 {[%clk 0:04:41.3]} 9. Nc3 {[%clk 0:04:25.1]} 9... Be6 {[%clk 0:04:32.6]} 10.
Qc2 {[%clk 0:04:15.9]} 10... Nxc4 {[%clk 0:04:23.7]} 11. Bxc4 {[%clk 0:04:11.4]}
11... Bxc4 {[%clk 0:04:22.3]} 12. exd6 {[%clk 0:04:09]} 12... cxd6 {[%clk
0:04:18.8]} 13. Qa4 {[%clk 0:04:04.5]} 13... Qe7+ {[%clk 0:04:03.6]} 14. Kd2
{[%clk 0:03:57.9]} 14... Bb5 {[%clk 0:03:50.4]} 15. Nxb5 {[%clk 0:03:53.5]}
15... cxb5 {[%clk 0:03:49.5]} 16. Qxb5+ {[%clk 0:03:52.2]} 16... Qd7 {[%clk
0:03:48.9]} 17. Rhe1+ {[%clk 0:03:48.6]} 17... Kd8 {[%clk 0:03:47.8]} 18. Bg5+
{[%clk 0:03:42.6]} 18... f6 {[%clk 0:03:45.9]} 19. Qa5+ {[%clk 0:03:39]} 19...
Qc7 {[%clk 0:03:45]} 20. Re8+ {[%clk 0:03:28.5]} 20... Kd7 {[%clk 0:03:36.6]}
21. Qb5+ {[%clk 0:03:22.1]} 21... Qc6 {[%clk 0:03:32.1]} 22. Qxc6+ {[%clk
0:03:21]} 22... Kxc6 {[%clk 0:03:32]} 23. Rxa8 {[%clk 0:03:17.4]} 23... fxg5
{[%clk 0:03:27.3]} 24. Rc1+ {[%clk 0:03:13]} 24... Kd7 {[%clk 0:03:22.8]} 25.
Rxa7+ {[%clk 0:03:10.2]} 25... Ke6 {[%clk 0:03:21.4]} 26. Re1+ {[%clk
0:03:06.6]} 26... Kf6 {[%clk 0:03:19.3]} 27. Re8 {[%clk 0:03:02.2]} 27... d5
{[%clk 0:03:16.9]} 28. Ke3 {[%clk 0:02:49.3]} 28... Bc5+ {[%clk 0:03:14.9]} 29.
Kd3 {[%clk 0:02:40.9]} 29... Rxe8 {[%clk 0:03:13.7]} 30. Rd7 {[%clk 0:02:37.2]}
30... Bxf2 {[%clk 0:03:03.9]} 31. Rxd5 {[%clk 0:02:32.7]} 31... g4 {[%clk
0:02:58.5]} 32. Rd6+ {[%clk 0:02:29.3]} 32... Ke7 {[%clk 0:02:56.4]} 33. Rd5
{[%clk 0:02:28.4]} 33... Rd8 {[%clk 0:02:55.4]} 34. Rxd8 {[%clk 0:02:25.1]}
34... Kxd8 {[%clk 0:02:55.3]} 35. Ke4 {[%clk 0:02:21.6]} 35... Bg1 {[%clk
0:02:54.3]} 36. h4 {[%clk 0:02:18]} 36... gxh3 {[%clk 0:02:52.6]} 37. gxh3
{[%clk 0:02:15.6]} 37... Ke7 {[%clk 0:02:45.4]} 38. h4 {[%clk 0:02:12.1]} 38...
g6 {[%clk 0:02:43.2]} 39. h5 {[%clk 0:02:08.1]} 39... g5 {[%clk 0:02:39.1]} 40.
b3 {[%clk 0:02:04]} 40... Ke6 {[%clk 0:02:35.6]} 41. a4 {[%clk 0:02:00.7]} 41...
Bc5 {[%clk 0:02:33.1]} 42. a5 {[%clk 0:01:57.9]} 42... h6 {[%clk 0:02:20.1]} 43.
a6 {[%clk 0:01:52.4]} 43... Kd6 {[%clk 0:02:09.1]} 44. b4 {[%clk 0:01:43.8]}
44... Ba7 {[%clk 0:02:02.8]} 45. Kf5 {[%clk 0:01:38.1]} 45... Kc6 {[%clk
0:02:01.5]} 46. Ke5 {[%clk 0:01:34.5]} 46... Kb5 {[%clk 0:01:59.1]} 47. Kf5
{[%clk 0:01:31.7]} 47... Kxb4 {[%clk 0:01:57.7]} 48. Ke4 {[%clk 0:01:29.3]}
48... Kb5 {[%clk 0:01:56.5]} 49. Kd5 {[%clk 0:01:25.7]} 49... Kxa6 {[%clk
0:01:55.2]} 50. Ke5 {[%clk 0:01:23.4]} 50... Kb5 {[%clk 0:01:54.3]} 51. Kf5
{[%clk 0:01:21.1]} 51... Kc4 {[%clk 0:01:51.5]} 52. Ke4 {[%clk 0:01:18.6]} 52...
Bd4 {[%clk 0:01:47.9]} 53. Kf3 {[%clk 0:01:13]} 53... Kd5 {[%clk 0:01:46.7]} 54.
Kg2 {[%clk 0:01:10.6]} 54... Ke4 {[%clk 0:01:45.5]} 55. Kg3 {[%clk 0:01:07.7]}
55... Be5+ {[%clk 0:01:40.8]} 56. Kh3 {[%clk 0:01:04.2]} 56... Kf4 {[%clk
0:01:35.8]} 57. Kg2 {[%clk 0:01:00.7]} 57... g4 {[%clk 0:01:34.6]} 58. Kf1
{[%clk 0:00:58.6]} 58... Kf3 {[%clk 0:01:32.6]} 59. Ke1 {[%clk 0:00:55.7]} 59...
Bf4 {[%clk 0:01:27.1]} 60. Kd1 {[%clk 0:00:53.1]} 60... g3 {[%clk 0:01:26.2]}
61. Kc2 {[%clk 0:00:50.7]} 61... g2 {[%clk 0:01:25.3]} 62. Kb3 {[%clk
0:00:48.3]} 62... g1=Q {[%clk 0:01:24.3]} 63. Kc4 {[%clk 0:00:45.1]} 63... Qd1
{[%clk 0:01:20.6]} 64. Kc5 {[%clk 0:00:42.8]} 64... Ke4 {[%clk 0:01:18.5]} 65.
Kb5 {[%clk 0:00:40.1]} 65... Qc2 {[%clk 0:01:15.2]} 66. Kb4 {[%clk 0:00:37.3]}
66... Kd5 {[%clk 0:01:11.6]} 67. Kb5 {[%clk 0:00:34]} 67... Qb3+ {[%clk
0:01:10.2]} 68. Ka6 {[%clk 0:00:31.2]} 68... Kc6 {[%clk 0:01:08.4]} 0-1

[Event "Live Chess"]
[Site "Chess.com"]
[Date "2023.05.20"]
[Round "-"]
[White "Supertromp"]
[Black "TDCMF"]
[Result "1-0"]
[WhiteElo "2170"]
[BlackElo "340"]
[TimeControl "300"]
[EndTime "10:03:15 PDT"]
[Termination "Supertromp won by checkmate"]

1. e4 {[%clk 0:04:57.8]} 1... e5 {[%clk 0:04:58.9]} 2. Nf3 {[%clk 0:04:55.1]}
2... Nc6 {[%clk 0:04:56.9]} 3. Bc4 {[%clk 0:04:52.1]} 3... Bc5 {[%clk
0:04:48.5]} 4. d3 {[%clk 0:04:33.2]} 4... Qh4 {[%clk 0:04:46.3]} 5. Nxh4 {[%clk
0:04:31.5]} 5... Bxf2+ {[%clk 0:04:43.2]} 6. Kxf2 {[%clk 0:04:30.4]} 6... Nd4
{[%clk 0:04:42.5]} 7. Qh5 {[%clk 0:04:26.8]} 7... g6 {[%clk 0:04:41]} 8. Qxe5+
{[%clk 0:04:25.8]} 8... Ne7 {[%clk 0:04:38.2]} 9. Qxh8+ {[%clk 0:04:25]} 9...
Ng8 {[%clk 0:04:35]} 10. Qxg8+ {[%clk 0:04:24.3]} 10... Ke7 {[%clk 0:04:34.4]}
11. Qxf7+ {[%clk 0:04:24.2]} 11... Kd6 {[%clk 0:04:31.1]} 12. Qd5+ {[%clk
0:04:24.1]} 12... Ke7 {[%clk 0:04:29.3]} 13. Bg5+ {[%clk 0:04:24]} 13... Ke8
{[%clk 0:04:27.9]} 14. Qf7# {[%clk 0:04:23.9]} 1-0

[Event "Live Chess"]
[Site "Chess.com"]
[Date "2023.05.20"]
[Round "-"]
[White "KeithArkell"]
[Black "bedsdrout"]
[Result "1-0"]
[WhiteElo "2610"]
[BlackElo "434"]
[TimeControl "300"]
[EndTime "10:03:20 PDT"]
[Termination "KeithArkell won by checkmate"]

1. d4 {[%clk 0:04:58.7]} 1... d5 {[%clk 0:04:56.3]} 2. Nf3 {[%clk 0:04:57.8]}
2... e6 {[%clk 0:04:48.8]} 3. c4 {[%clk 0:04:57]} 3... dxc4 {[%clk 0:04:43]} 4.
e3 {[%clk 0:04:55.9]} 4... Bb4+ {[%clk 0:04:30.7]} 5. Bd2 {[%clk 0:04:54.3]}
5... Nc6 {[%clk 0:04:23.7]} 6. Bxc4 {[%clk 0:04:52.5]} 6... e5 {[%clk
0:04:08.8]} 7. Bxb4 {[%clk 0:04:50.2]} 7... Nxb4 {[%clk 0:04:06.6]} 8. Qa4+
{[%clk 0:04:49.2]} 8... Bd7 {[%clk 0:04:02.1]} 9. Qxb4 {[%clk 0:04:47.3]} 9...
Qh4 {[%clk 0:03:32.7]} 10. Nxh4 {[%clk 0:04:45.5]} 10... b6 {[%clk 0:03:21.5]}
11. Nf3 {[%clk 0:04:41.2]} 11... Nf6 {[%clk 0:03:13.7]} 12. Nxe5 {[%clk
0:04:40.2]} 12... Nd5 {[%clk 0:03:07.3]} 13. Bxd5 {[%clk 0:04:38.6]} 13... c5
{[%clk 0:03:03.1]} 14. Bxf7+ {[%clk 0:04:35.7]} 14... Kd8 {[%clk 0:02:44.6]} 15.
dxc5 {[%clk 0:04:34.7]} 15... bxc5 {[%clk 0:02:41.9]} 16. Qb7 {[%clk 0:04:31.8]}
16... Bc6 {[%clk 0:02:32.2]} 17. Nxc6# {[%clk 0:04:30.3]} 1-0

[Event "Live Chess"]
[Site "Chess.com"]
[Date "2023.05.20"]
[Round "-"]
[White "JackRudd"]
[Black "FlyingChessKestrel13"]
[Result "1-0"]
[WhiteElo "2399"]
[BlackElo "2124"]
[TimeControl "300"]
[EndTime "10:03:25 PDT"]
[Termination "JackRudd won by checkmate"]

1. e4 {[%clk 0:04:58.5]} 1... c5 {[%clk 0:04:58]} 2. Nf3 {[%clk 0:04:57.4]} 2...
Nc6 {[%clk 0:04:57.3]} 3. d4 {[%clk 0:04:56.4]} 3... cxd4 {[%clk 0:04:56.5]} 4.
Nxd4 {[%clk 0:04:55.8]} 4... Nf6 {[%clk 0:04:55.5]} 5. Nc3 {[%clk 0:04:54.9]}
5... e5 {[%clk 0:04:54.6]} 6. Ndb5 {[%clk 0:04:53.5]} 6... d6 {[%clk 0:04:53.8]}
7. Nd5 {[%clk 0:04:51.4]} 7... Nxd5 {[%clk 0:04:52.1]} 8. exd5 {[%clk
0:04:50.7]} 8... Ne7 {[%clk 0:04:51.7]} 9. c4 {[%clk 0:04:50.1]} 9... Ng6 {[%clk
0:04:50.7]} 10. Be3 {[%clk 0:04:46.8]} 10... a6 {[%clk 0:04:46]} 11. Nc3 {[%clk
0:04:45.8]} 11... Be7 {[%clk 0:04:42]} 12. Be2 {[%clk 0:04:43.2]} 12... O-O
{[%clk 0:04:41]} 13. O-O {[%clk 0:04:42.3]} 13... f5 {[%clk 0:04:40.1]} 14. Qb3
{[%clk 0:04:41.1]} 14... f4 {[%clk 0:04:38.6]} 15. Bb6 {[%clk 0:04:40]} 15...
Qe8 {[%clk 0:04:36.4]} 16. f3 {[%clk 0:04:38.4]} 16... Nh4 {[%clk 0:04:31.3]}
17. Bd3 {[%clk 0:04:35.7]} 17... Bf5 {[%clk 0:04:29.1]} 18. Bxf5 {[%clk
0:04:33.9]} 18... Nxf5 {[%clk 0:04:28.2]} 19. Ne4 {[%clk 0:04:32.9]} 19... Qg6
{[%clk 0:04:24.5]} 20. Rad1 {[%clk 0:04:28]} 20... Kh8 {[%clk 0:04:23]} 21. Rf2
{[%clk 0:04:19]} 21... Rac8 {[%clk 0:03:57.7]} 22. Qd3 {[%clk 0:04:13.5]} 22...
Bd8 {[%clk 0:03:49.6]} 23. Bxd8 {[%clk 0:04:10.9]} 23... Rfxd8 {[%clk
0:03:49.3]} 24. b3 {[%clk 0:04:09.5]} 24... Ne3 {[%clk 0:03:38]} 25. Re1 {[%clk
0:04:08.2]} 25... Qe8 {[%clk 0:03:27.5]} 26. Ng5 {[%clk 0:04:05.2]} 26... b5
{[%clk 0:03:17.8]} 27. Qxh7# {[%clk 0:04:01.9]} 1-0

[Event "Live Chess"]
[Site "Chess.com"]
[Date "2023.05.20"]
[Round "-"]
[White "BearFromUkraine"]
[Black "f4nomore"]
[Result "0-1"]
[WhiteElo "1139"]
[BlackElo "1367"]
[TimeControl "300"]
[EndTime "10:03:28 PDT"]
[Termination "f4nomore won by resignation"]

1. e4 {[%clk 0:04:56.5]} 1... g6 {[%clk 0:04:59.9]} 2. d4 {[%clk 0:04:53.5]}
2... Bg7 {[%clk 0:04:59.8]} 3. e5 {[%clk 0:04:52]} 3... d6 {[%clk 0:04:59.7]} 4.
Nf3 {[%clk 0:04:49.1]} 4... dxe5 {[%clk 0:04:58.6]} 5. Nxe5 {[%clk 0:04:43.3]}
5... Bxe5 {[%clk 0:04:57.5]} 6. dxe5 {[%clk 0:04:42.6]} 6... Qxd1+ {[%clk
0:04:55.9]} 7. Kxd1 {[%clk 0:04:40.7]} 7... Nc6 {[%clk 0:04:55]} 8. Bf4 {[%clk
0:04:37.5]} 8... Bf5 {[%clk 0:04:53.5]} 9. Bd3 {[%clk 0:04:30.7]} 9... O-O-O
{[%clk 0:04:51.2]} 10. Nd2 {[%clk 0:04:27.8]} 10... Bxd3 {[%clk 0:04:48.6]} 11.
cxd3 {[%clk 0:04:24.9]} 11... Rxd3 {[%clk 0:04:46.1]} 12. Kc2 {[%clk 0:04:07.9]}
12... Rd5 {[%clk 0:04:41.2]} 13. Rhe1 {[%clk 0:04:00]} 13... e6 {[%clk
0:04:39.7]} 14. Nb3 {[%clk 0:03:52.8]} 14... Nge7 {[%clk 0:04:37]} 15. Rad1
{[%clk 0:03:47.1]} 15... Rhd8 {[%clk 0:04:34.5]} 16. Rxd5 {[%clk 0:03:25]} 16...
Nxd5 {[%clk 0:04:32.4]} 17. Bg3 {[%clk 0:03:12.7]} 17... h6 {[%clk 0:04:30.3]}
18. f4 {[%clk 0:03:10.7]} 18... g5 {[%clk 0:04:21.8]} 19. fxg5 {[%clk
0:02:57.6]} 19... hxg5 {[%clk 0:04:20.2]} 20. Bf2 {[%clk 0:02:54.2]} 20... Rh8
{[%clk 0:04:04.7]} 21. h3 {[%clk 0:02:50.5]} 21... Nf4 {[%clk 0:03:53.8]} 22.
Re2 {[%clk 0:02:23.2]} 22... Nxg2 {[%clk 0:03:47.9]} 23. Bxa7 {[%clk 0:02:20.7]}
23... Nf4 {[%clk 0:03:42.4]} 24. Rf2 {[%clk 0:02:04.8]} 24... Nxa7 {[%clk
0:03:38]} 25. h4 {[%clk 0:02:01.9]} 25... Rxh4 {[%clk 0:03:35.3]} 0-1

[Event "Live Chess"]
[Site "Chess.com"]
[Date "2023.05.20"]
[Round "-"]
[White "Albul"]
[Black "ethanredball"]
[Result "1-0"]
[WhiteElo "2188"]
[BlackElo "633"]
[TimeControl "300"]
[EndTime "10:03:31 PDT"]
[Termination "Albul won by checkmate"]

1. e4 {[%clk 0:04:56.4]} 1... d5 {[%clk 0:04:58]} 2. e5 {[%clk 0:04:55.1]} 2...
Bf5 {[%clk 0:04:55.1]} 3. f4 {[%clk 0:04:54.5]} 3... c6 {[%clk 0:04:51.7]} 4.
Nf3 {[%clk 0:04:52.6]} 4... f6 {[%clk 0:04:50.3]} 5. d4 {[%clk 0:04:51.6]} 5...
fxe5 {[%clk 0:04:48.8]} 6. fxe5 {[%clk 0:04:50.4]} 6... Nd7 {[%clk 0:04:44.7]}
7. Bd3 {[%clk 0:04:49.1]} 7... Bxd3 {[%clk 0:04:40.8]} 8. Qxd3 {[%clk
0:04:48.5]} 8... e6 {[%clk 0:04:37.1]} 9. O-O {[%clk 0:04:43.8]} 9... Bb4 {[%clk
0:04:30.6]} 10. c3 {[%clk 0:04:34.6]} 10... Ba5 {[%clk 0:04:25.3]} 11. Ng5
{[%clk 0:04:30.2]} 11... Qxg5 {[%clk 0:03:41]} 12. Bxg5 {[%clk 0:04:27.1]} 12...
Nf8 {[%clk 0:03:37.5]} 13. Qf3 {[%clk 0:04:20.1]} 13... Bc7 {[%clk 0:03:33.7]}
14. Qf7# {[%clk 0:04:16.8]} 1-0

[Event "Live Chess"]
[Site "Chess.com"]
[Date "2023.05.20"]
[Round "-"]
[White "Tilbs_12"]
[Black "jagbama"]
[Result "1-0"]
[WhiteElo "1595"]
[BlackElo "1132"]
[TimeControl "300"]
[EndTime "10:03:32 PDT"]
[Termination "Tilbs_12 won by resignation"]

1. e4 {[%clk 0:04:58.3]} 1... e5 {[%clk 0:04:58.3]} 2. Nf3 {[%clk 0:04:56.8]}
2... Nc6 {[%clk 0:04:55.1]} 3. c3 {[%clk 0:04:56]} 3... d6 {[%clk 0:04:50.5]} 4.
d4 {[%clk 0:04:54.8]} 4... Nf6 {[%clk 0:04:47.2]} 5. d5 {[%clk 0:04:38.7]} 5...
Na5 {[%clk 0:04:36.1]} 6. Bd3 {[%clk 0:04:35.6]} 6... c6 {[%clk 0:04:32.9]} 7.
b4 {[%clk 0:04:33.8]} 7... Nxe4 {[%clk 0:04:23.1]} 8. Bxe4 {[%clk 0:04:31]} 8...
Nc4 {[%clk 0:04:21.6]} 9. dxc6 {[%clk 0:04:23.9]} 9... bxc6 {[%clk 0:04:17.6]}
10. Bxc6+ {[%clk 0:04:22.4]} 10... Bd7 {[%clk 0:04:13.8]} 11. Bxa8 {[%clk
0:04:20.9]} 11... Qxa8 {[%clk 0:04:12.7]} 12. O-O {[%clk 0:04:19.9]} 12... Bg4
{[%clk 0:04:08.3]} 13. Nbd2 {[%clk 0:04:12.8]} 13... Nxd2 {[%clk 0:04:02.6]} 14.
Bxd2 {[%clk 0:04:11.8]} 14... e4 {[%clk 0:04:00.6]} 15. h3 {[%clk 0:04:06.9]}
15... exf3 {[%clk 0:03:55.8]} 16. hxg4 {[%clk 0:04:05.8]} 16... fxg2 {[%clk
0:03:54.7]} 17. Re1+ {[%clk 0:04:04.9]} 17... Be7 {[%clk 0:03:53.2]} 18. Bf4
{[%clk 0:03:44.1]} 18... Kd7 {[%clk 0:03:30.4]} 19. Qa4+ {[%clk 0:03:38.9]}
19... Kd8 {[%clk 0:03:22.6]} 20. Qa5+ {[%clk 0:03:11.4]} 20... Kd7 {[%clk
0:03:17.8]} 21. Qb5+ {[%clk 0:03:03]} 21... Kd8 {[%clk 0:03:14.7]} 22. Rad1
{[%clk 0:03:00.3]} 22... h5 {[%clk 0:03:03.1]} 23. Bxd6 {[%clk 0:02:57.7]} 23...
hxg4 {[%clk 0:02:57.4]} 24. Bxe7+ {[%clk 0:02:37.8]} 24... Kc7 {[%clk
0:02:48.5]} 25. Rd7+ {[%clk 0:02:15.4]} 25... Kc8 {[%clk 0:02:37.6]} 26. Rd8+
{[%clk 0:02:09.2]} 26... Rxd8 {[%clk 0:02:22.8]} 27. Bxd8 {[%clk 0:02:07.9]}
27... Qf3 {[%clk 0:02:11.4]} 28. Qe8 {[%clk 0:01:02.1]} 28... g3 {[%clk
0:01:53.2]} 29. Bh4+ {[%clk 0:00:56.5]} 29... Kb7 {[%clk 0:01:48.1]} 30. Bxg3
{[%clk 0:00:55.5]} 30... f5 {[%clk 0:01:31]} 31. Qf7+ {[%clk 0:00:50]} 31... Ka6
{[%clk 0:01:21.8]} 32. Qc4+ {[%clk 0:00:45.9]} 32... Kb7 {[%clk 0:01:12.4]} 33.
Qc7+ {[%clk 0:00:43.1]} 33... Ka6 {[%clk 0:01:08.1]} 34. Re6+ {[%clk 0:00:34.2]}
34... Kb5 {[%clk 0:01:05.9]} 35. Qc5+ {[%clk 0:00:30.4]} 1-0

[Event "Live Chess"]
[Site "Chess.com"]
[Date "2023.05.20"]
[Round "-"]
[White "mach247"]
[Black "seasidecastle27"]
[Result "1/2-1/2"]
[WhiteElo "1352"]
[BlackElo "1772"]
[TimeControl "300"]
[EndTime "10:03:42 PDT"]
[Termination "Game drawn by repetition"]

1. e4 {[%clk 0:04:59.9]} 1... d6 {[%clk 0:04:57.7]} 2. d4 {[%clk 0:04:58.7]}
2... e5 {[%clk 0:04:56.5]} 3. dxe5 {[%clk 0:04:57.5]} 3... Nc6 {[%clk
0:04:55.1]} 4. exd6 {[%clk 0:04:56.5]} 4... Bxd6 {[%clk 0:04:53.6]} 5. Bb5
{[%clk 0:04:52.7]} 5... Bd7 {[%clk 0:04:52.1]} 6. Nf3 {[%clk 0:04:49.3]} 6...
Qe7 {[%clk 0:04:48.1]} 7. O-O {[%clk 0:04:46.4]} 7... O-O-O {[%clk 0:04:46.3]}
8. Nc3 {[%clk 0:04:29.9]} 8... Nf6 {[%clk 0:04:41.6]} 9. Bg5 {[%clk 0:04:20.2]}
9... h6 {[%clk 0:04:39.9]} 10. Bxf6 {[%clk 0:04:19.4]} 10... Qxf6 {[%clk
0:04:37.3]} 11. Bxc6 {[%clk 0:04:11.7]} 11... Bxc6 {[%clk 0:04:33.4]} 12. e5
{[%clk 0:04:11.1]} 12... Bxe5 {[%clk 0:04:31.1]} 13. Qe2 {[%clk 0:04:02]} 13...
Bxc3 {[%clk 0:04:25.9]} 14. bxc3 {[%clk 0:04:01.1]} 14... Bxf3 {[%clk
0:04:22.8]} 15. Qxf3 {[%clk 0:04:00]} 15... Qxf3 {[%clk 0:04:20.6]} 16. gxf3
{[%clk 0:03:59.9]} 16... Rd2 {[%clk 0:04:18.9]} 17. Rfe1 {[%clk 0:03:52.4]}
17... Rhd8 {[%clk 0:04:08.6]} 18. Re7 {[%clk 0:03:49.4]} 18... Rd1+ {[%clk
0:03:58.3]} 19. Rxd1 {[%clk 0:03:48.6]} 19... Rxd1+ {[%clk 0:03:55.8]} 20. Kg2
{[%clk 0:03:48.2]} 20... Rd7 {[%clk 0:03:54]} 21. Re8+ {[%clk 0:03:44.8]} 21...
Rd8 {[%clk 0:03:52.8]} 22. Re7 {[%clk 0:03:44.2]} 22... Rd7 {[%clk 0:03:51.9]}
23. Re8+ {[%clk 0:03:43.4]} 23... Rd8 {[%clk 0:03:51]} 24. Re7 {[%clk
0:03:42.9]} 24... Rd7 {[%clk 0:03:50.1]} 1/2-1/2

[Event "Live Chess"]
[Site "Chess.com"]
[Date "2023.05.20"]
[Round "-"]
[White "Prijmak"]
[Black "Tushinskiy"]
[Result "0-1"]
[WhiteElo "984"]
[BlackElo "2090"]
[TimeControl "300"]
[EndTime "10:03:44 PDT"]
[Termination "Tushinskiy won by checkmate"]

1. e4 {[%clk 0:04:56.7]} 1... e5 {[%clk 0:04:59.1]} 2. f4 {[%clk 0:04:54.9]}
2... d6 {[%clk 0:04:59]} 3. Nf3 {[%clk 0:04:53]} 3... Bg4 {[%clk 0:04:53.1]} 4.
fxe5 {[%clk 0:04:47.6]} 4... dxe5 {[%clk 0:04:48.8]} 5. Bc4 {[%clk 0:04:46.1]}
5... Nd7 {[%clk 0:04:38.9]} 6. O-O {[%clk 0:04:43.2]} 6... Ngf6 {[%clk
0:04:30.3]} 7. d3 {[%clk 0:04:41.2]} 7... Be7 {[%clk 0:04:26.2]} 8. Bg5 {[%clk
0:04:37.5]} 8... O-O {[%clk 0:04:14.8]} 9. Nc3 {[%clk 0:04:35.5]} 9... c6 {[%clk
0:03:59.1]} 10. Qd2 {[%clk 0:04:30.3]} 10... Bxf3 {[%clk 0:03:56.7]} 11. Rxf3
{[%clk 0:04:28.1]} 11... b5 {[%clk 0:03:54.5]} 12. Bb3 {[%clk 0:04:24.6]} 12...
a5 {[%clk 0:03:42.7]} 13. a3 {[%clk 0:04:22.4]} 13... Nc5 {[%clk 0:03:40.3]} 14.
Ba2 {[%clk 0:04:17.3]} 14... b4 {[%clk 0:03:38]} 15. axb4 {[%clk 0:03:55.6]}
15... axb4 {[%clk 0:03:37.9]} 16. Ne2 {[%clk 0:03:45.3]} 16... b3 {[%clk
0:03:25.3]} 17. cxb3 {[%clk 0:03:40.4]} 17... Nxb3 {[%clk 0:03:04.2]} 18. Bxb3
{[%clk 0:03:35.4]} 18... Rxa1+ {[%clk 0:03:04.1]} 19. Kf2 {[%clk 0:03:34.5]}
19... Ng4+ {[%clk 0:02:49.6]} 20. Kg3 {[%clk 0:03:19.9]} 20... Bxg5 {[%clk
0:02:49.5]} 21. Qc2 {[%clk 0:03:16.2]} 21... Bd2 {[%clk 0:02:49.4]} 22. Qxd2
{[%clk 0:03:10.6]} 22... Nf6 {[%clk 0:02:46]} 23. Qc3 {[%clk 0:03:07.5]} 23...
Qe7 {[%clk 0:02:36.2]} 24. Qxc6 {[%clk 0:03:02.6]} 24... Re1 {[%clk 0:02:27.2]}
25. Nc3 {[%clk 0:03:00.3]} 25... Qa7 {[%clk 0:02:19.4]} 26. Nd5 {[%clk
0:02:51.5]} 26... Nxd5 {[%clk 0:01:48.5]} 27. Qxd5 {[%clk 0:02:48.2]} 27... Re3
{[%clk 0:01:45.5]} 28. Rxe3 {[%clk 0:02:38.1]} 28... Qxe3+ {[%clk 0:01:45.4]}
29. Kg4 {[%clk 0:02:31.9]} 29... Qf4+ {[%clk 0:01:32.2]} 30. Kh3 {[%clk
0:02:28.9]} 30... g6 {[%clk 0:01:07.7]} 31. g4 {[%clk 0:02:26.1]} 31... Rc8
{[%clk 0:01:00.3]} 32. Bc4 {[%clk 0:02:24.2]} 32... Kg7 {[%clk 0:00:57.9]} 33.
b3 {[%clk 0:02:21.1]} 33... h6 {[%clk 0:00:52.7]} 34. Qd7 {[%clk 0:02:16.7]}
34... Qf3+ {[%clk 0:00:49.1]} 35. Kh4 {[%clk 0:01:43.1]} 35... g5+ {[%clk
0:00:49]} 36. Kh5 {[%clk 0:01:20.3]} 36... Qh3# {[%clk 0:00:48.5]} 0-1

[Event "Live Chess"]
[Site "Chess.com"]
[Date "2023.05.20"]
[Round "-"]
[White "Outspanner"]
[Black "mightysmasher"]
[Result "0-1"]
[WhiteElo "1572"]
[BlackElo "2090"]
[TimeControl "300"]
[EndTime "10:03:50 PDT"]
[Termination "mightysmasher won by checkmate"]

1. d4 {[%clk 0:04:55.7]} 1... d5 {[%clk 0:04:58.4]} 2. Bg5 {[%clk 0:04:47.4]}
2... Nf6 {[%clk 0:04:56.5]} 3. Bxf6 {[%clk 0:04:43.7]} 3... exf6 {[%clk
0:04:54.7]} 4. e3 {[%clk 0:04:37.8]} 4... c5 {[%clk 0:04:52.4]} 5. Bb5+ {[%clk
0:04:23.2]} 5... Nc6 {[%clk 0:04:50.3]} 6. Nc3 {[%clk 0:04:15.9]} 6... Be6
{[%clk 0:04:46.7]} 7. Nge2 {[%clk 0:04:08.1]} 7... Be7 {[%clk 0:04:42.9]} 8. Nf4
{[%clk 0:04:01.9]} 8... O-O {[%clk 0:04:39.8]} 9. h4 {[%clk 0:03:44.3]} 9...
cxd4 {[%clk 0:04:36.2]} 10. exd4 {[%clk 0:03:42.4]} 10... Bb4 {[%clk 0:04:34.3]}
11. O-O {[%clk 0:03:34.7]} 11... Qd6 {[%clk 0:04:22.2]} 12. Nd3 {[%clk 0:03:29]}
12... Ba5 {[%clk 0:04:17.4]} 13. Nc5 {[%clk 0:03:16.5]} 13... Bc7 {[%clk
0:04:13.4]} 14. g3 {[%clk 0:03:11]} 14... Rab8 {[%clk 0:04:07.1]} 15. Bd3 {[%clk
0:03:04.6]} 15... Nxd4 {[%clk 0:04:00.9]} 16. Bxh7+ {[%clk 0:02:49.4]} 16...
Kxh7 {[%clk 0:03:58.9]} 17. Qxd4 {[%clk 0:02:49.3]} 17... Bb6 {[%clk 0:03:56.6]}
18. N3a4 {[%clk 0:02:48]} 18... Bc7 {[%clk 0:03:47.3]} 19. Nd3 {[%clk
0:02:43.4]} 19... b6 {[%clk 0:03:41]} 20. Nc3 {[%clk 0:02:37.7]} 20... a6 {[%clk
0:03:34.2]} 21. Rae1 {[%clk 0:02:28.2]} 21... Rbd8 {[%clk 0:03:20.4]} 22. Nf4
{[%clk 0:02:21]} 22... Bf5 {[%clk 0:03:13.4]} 23. Re2 {[%clk 0:01:57]} 23... Bg4
{[%clk 0:02:54.8]} 24. Re3 {[%clk 0:01:52]} 24... Be6 {[%clk 0:02:32.1]} 25. Rd1
{[%clk 0:01:46.4]} 25... Bg4 {[%clk 0:02:28.4]} 26. Rd2 {[%clk 0:01:40.8]} 26...
b5 {[%clk 0:02:18.9]} 27. Qxd5 {[%clk 0:01:31.7]} 27... Qb6 {[%clk 0:02:09.1]}
28. Qe4+ {[%clk 0:00:49.5]} 28... f5 {[%clk 0:02:06.2]} 29. Rxd8 {[%clk
0:00:46.9]} 29... Rxd8 {[%clk 0:01:55.1]} 30. Qe7 {[%clk 0:00:42.3]} 30... Bxf4
{[%clk 0:01:46]} 31. gxf4 {[%clk 0:00:39.1]} 31... b4 {[%clk 0:01:44.3]} 32. Ne2
{[%clk 0:00:31.5]} 32... Rd1+ {[%clk 0:01:39.5]} 33. Kh2 {[%clk 0:00:24.5]}
33... Qc6 {[%clk 0:01:32.6]} 34. Ng3 {[%clk 0:00:22.3]} 34... Qxc2 {[%clk
0:01:29]} 35. Nh1 {[%clk 0:00:11.8]} 35... Rxh1+ {[%clk 0:01:17.2]} 36. Kxh1
{[%clk 0:00:10.8]} 36... Qxf2 {[%clk 0:01:16.2]} 37. Re1 {[%clk 0:00:04.1]}
37... Bf3# {[%clk 0:01:14.5]} 0-1